Cogmind - Beta 15 @@@ ROGUE MODE // 2025.06.25 @ 13:17:53 Player: Alien Result: Self-destructed Performance ------------- Evolutions (3) 1500 Regions Visited (9) 1800 Robots Destroyed (129) 645 Value Destroyed (4255) 4255 Prototype IDs (12) 240 Alien Tech Used (0) 0 Bonus (411) 411 TOTAL SCORE: 8851 Bonus ------- High Alert Combat Kills 404 Follower Combat Kills 7 Cogmind --------- Core Integrity 357/700 Matter 212/300 Energy 480/480 System Corruption 6% Temperature Cool (-100) Movement Treading (240) Ox1 Location -7/Lower Caves Parts ------- > --- POWER (2) -------- Reinforced Deuterium Engine Reinforced Deuterium Engine > --- PROPULSION (4) --- Light Treads Light Treads Light Treads Light Treads > --- UTILITY (4) ------ Cryofiber Web Advanced Heat Sink Huge Storage Unit Reflective Plating > --- WEAPON (3) ------- Heavy Particle Cannon Ion Cannon Ion Cannon > --- INVENTORY (25) --- Light Angular Momentum Engine Light Treads Light Treads Light Treads Improved Treads Armored Wheel Improved Heat Sink Coolant Injector High-capacity Storage Unit Large Battery (200) Advanced Visual Processing Unit Improved Targeting Computer Reflective Plating Thief Drone Bay (3/3) Heavy Particle Cannon Heavy Particle Cannon Ion Cannon Ion Cannon Rocket Array Heavy Flail Peak State ------------ > --- POWER ------------ Reinforced Deuterium Engine Reinforced Deuterium Engine > --- PROPULSION ------- Light Treads Light Treads Improved Treads Advanced Treads > --- UTILITY ---------- Cryofiber Web Advanced Heat Sink Huge Storage Unit Reflective Plating > --- WEAPON ----------- Heavy Particle Cannon Heavy Particle Cannon Ion Cannon > --- INVENTORY -------- Light Angular Momentum Engine Light Treads Light Treads Light Treads Light Treads Light Treads Improved Treads Armored Wheel Cryofiber Web Improved Heat Sink Coolant Injector High-capacity Storage Unit Large Battery Advanced Visual Processing Unit Improved Targeting Computer Reflective Plating Reflective Plating Thief Drone Bay Heavy Particle Cannon Heavy Particle Cannon Ion Cannon Ion Cannon Ion Cannon Rocket Array Heavy Flail [Rating: 42] Favorites ----------- Power Cooled Ion Engine Engine Cooled Ion Engine Power Core Enhanced Nuclear Core Propulsion Light Treads Treads Light Treads Wheel Armored Wheel Utility Reflective Plating Device Improved Heat Sink Storage Huge Storage Unit Protection Reflective Plating Weapon Heavy Particle Cannon Energy Gun Medium Laser Energy Cannon Heavy Particle Cannon Ballistic Gun Assault Rifle Launcher Rocket Array Impact Weapon Heavy Flail Build | -11 -10 -10 -9 -9 -9 -8 -8 -7 -7 ------- Run | Yrd Mat Min Mat Min Exi Min Mat Fac Low Slots Evolved 6 | . . . 2 . . . 2 2 . Power 1 | . . . . . . . . 1 . Propulsion 2 | . . . 1 . . . 1 . . Utility 2 | . . . 1 . . . 1 . . Weapon 1 | . . . . . . . . 1 . Parts Attached 76 | 7 8 1 19 2 . 1 9 29 . Power 11 | 1 2 1 2 . . . 1 4 . Engine 10 | 1 2 1 2 . . . 1 3 . Core 1 | . . . . . . . . 1 . Reactor . | . . . . . . . . . . Propulsion 23 | 2 1 . 8 . . . 4 8 . Treads 20 | 2 1 . 5 . . . 4 8 . Leg . | . . . . . . . . . . Wheel 3 | . . . 3 . . . . . . Hover . | . . . . . . . . . . Flight . | . . . . . . . . . . Utility 24 | 2 2 . 7 2 . . 4 7 . Device 14 | 1 1 . 3 2 . . 3 4 . Storage 4 | 1 1 . 1 . . . 1 . . Processor . | . . . . . . . . . . Hackware . | . . . . . . . . . . Protection 6 | . . . 3 . . . . 3 . Artifact . | . . . . . . . . . . Weapon 18 | 2 3 . 2 . . 1 . 10 . Energy Gun 2 | 1 1 . . . . . . . . Energy Cannon 12 | . 2 . 2 . . . . 8 . Ballistic Gun 1 | 1 . . . . . . . . . Ballistic Cannon . | . . . . . . . . . . Launcher 2 | . . . . . . 1 . 1 . Special Weapon . | . . . . . . . . . . Impact Weapon 1 | . . . . . . . . 1 . Slashing Weapon . | . . . . . . . . . . Piercing Weapon . | . . . . . . . . . . Special Melee Weapon . | . . . . . . . . . . Unidentified Prototypes 3 | . . . . 1 . . . 2 . Parts Lost 12 | . 1 . 2 . . . . 9 . Power 3 | . 1 . . . . . . 2 . Propulsion 2 | . . . 1 . . . . 1 . Utility 6 | . . . 1 . . . . 5 . Weapon 1 | . . . . . . . . 1 . Highest Loss Streak 4 | . 1 . 1 . . . . 4 . To Critical Strikes 1 | . . . . . . . . 1 . Average Backups 19 | 3 8 10 19 20 20 20 21 24 20 Power . | 1 1 . 1 2 2 2 1 . 1 Propulsion 4 | . . 1 3 5 5 5 5 6 5 Utility 9 | . 3 5 9 9 9 9 10 11 8 Weapon 5 | 1 3 4 4 4 4 4 4 6 6 Tool/Special . | . . . . . . . . . . Unused Backups 38 | . 6 . 14 1 . . 1 11 5 Power 2 | . . . 1 . . . . . 1 Propulsion 1 | . . . 1 . . . . . . Utility 20 | . 2 . 7 1 . . 1 5 4 Weapon 15 | . 4 . 5 . . . . 6 . Tool/Special . | . . . . . . . . . . Average Slot Usage (%) 99 | . 100 100 98 100 100 100 99 98 100 Engine 12 | . 14 14 11 11 11 11 9 14 15 Treads 30 | . 28 28 28 33 33 33 35 29 30 Wheel 1 | . . . 4 . . . . . . Device 13 | . 14 14 10 11 11 11 18 14 15 Storage 9 | . 14 14 11 11 11 11 9 7 7 Protection 7 | . . . 10 10 11 11 9 6 7 Energy Gun 1 | . 13 . . . . . . . . Energy Cannon 20 | . 13 28 21 22 22 21 18 22 23 Peak Build Rating 42 | 7 8 8 23 27 23 23 32 42 38 Average Rating 26 | 5 7 8 18 23 23 22 29 38 38 On Entrance 18 | . 7 8 8 23 23 23 23 32 38 Naked Turns . | . . . . . . . . . . Heaviest Build 134 | 13 20 22 65 65 65 65 106 134 134 Greatest Support 88 | 40 40 40 60 60 60 60 88 88 80 Greatest Overweight (x) 4 | 2 . . 4 1 1 1 1 1 1 Average Overweight (x) . | . . . 1 1 1 1 . 1 1 Largest Inventory Capacity 25 | 8 10 10 20 20 20 20 25 25 25 Average Capacity 20 | 7 8 10 19 20 20 20 23 25 25 Most Carried 25 | 5 10 10 20 20 20 20 25 25 20 Average Carried 19 | 3 8 10 19 19 20 20 21 24 20 Final Capacity 25 | 8 10 10 20 20 20 20 25 25 25 Final Carried 25 | 5 10 10 20 20 20 20 25 20 20 Class Distribution -------------------- 37% | Tank 30% | Scavenger-Mutant 28% | Mutant Dominant Class ---------------- Mutant | -10/Materials Mutant | -10/Mines Mutant | -9/Materials Scavenger-Mutant | -9/Mines Scavenger-Mutant | -9/Exiles Scavenger-Mutant | -8/Mines Scavenger-Mutant | -8/Materials Tank | -7/Factory Scavenger-Tank | -7/Lower Caves Resources | -11 -10 -10 -9 -9 -9 -8 -8 -7 -7 ----------- Run | Yrd Mat Min Mat Min Exi Min Mat Fac Low Matter Collected 1315 | 284 81 10 255 40 . 32 100 443 70 Remotely . | . . . . . . . . . . Salvage Created 4794 | 124 423 . 1233 27 . 231 411 2275 70 Parts 267 | 10 31 . 83 4 . 10 14 114 1 Haulers Intercepted 5 | . 2 . 2 . . . 1 . . Recyclers Shooed 2 | . . 1 . . . . 1 . . Parts Field Recycled . | . . . . . . . . . . Retrieved Matter . | . . . . . . . . . . Parts Self-Destructed 1 | . . . . . . . . . 1 Prevented . | . . . . . . . . . . Kills | -11 -10 -10 -9 -9 -9 -8 -8 -7 -7 ------- Run | Yrd Mat Min Mat Min Exi Min Mat Fac Low Combat Hostiles Destroyed 91 | . 11 . 22 2 . 7 3 45 1 Guns 8 | . 8 . . . . . . . . Cannons 67 | . 2 . 22 2 . 2 3 35 1 AOE 14 | . . . . . . 4 . 10 . Classes Destroyed 15 | 2 5 . 4 . . . 1 3 . Worker 6 | . . . 2 . . . . 4 . Builder 3 | . 1 . 1 . . . . 1 . Tunneler 6 | 3 . . 1 . . . . 2 . Hauler 5 | . 2 . 2 . . . 1 . . Recycler 4 | 1 . . 1 . . . 2 . . Operator 2 | . . . 1 . . . . 1 . Watcher 12 | . 3 . 4 . . . 1 4 . Swarmer 18 | . 6 . 6 2 . 4 . . . Grunt 36 | . 5 . 7 . . 3 1 20 . Brawler 4 | . . . 1 . . . . 3 . Duelist 2 | . . . . . . . . 2 . Protector 2 | . . . . . . . . 2 . Sentry 15 | . . . 8 . . . 1 5 1 Hunter 6 | . . . . . . . 1 5 . Programmer 8 | . . . . . . . . 8 . Best Kill Streak 11 | 3 3 . 8 2 . 4 1 11 1 Combat Bots Only 10 | . 3 . 8 2 . 4 1 10 1 Max Kills in Single Turn 7 | 1 1 . 2 1 . 3 1 7 1 Gunslinging . | . . . . . . . . . . Exploded 7 | . . . . . . 3 . 7 . Melee . | . . . . . . . . . . Uniques/NPCs Destroyed . | . . . . . . . . . . Combat | -11 -10 -10 -9 -9 -9 -8 -8 -7 -7 -------- Run | Yrd Mat Min Mat Min Exi Min Mat Fac Low Hostile Shots Fired 458 | . 51 . 91 8 . 20 14 247 27 Missed 124 | . 10 . 23 1 . 4 5 71 10 Hits 334 | . 41 . 68 7 . 16 9 176 17 Melee 14 | . . . . . . . . 14 . Projectile 320 | . 41 . 68 7 . 16 9 162 17 Critical Strikes 9 | . 2 . 1 . . . . 6 . Damage Taken 4772 | . 449 . 789 57 . 188 144 3023 122 Core 575 | . 48 . 113 20 . 22 29 322 21 Absorbed by Shields . | . . . . . . . . . . Ignored by Resistances 218 | . . . 39 . . 18 4 144 13 Regen/Repaired (Parts) 496 | . . . 184 . . . 56 256 . Core Remaining (%) 83 | 100 . 80 . . . 61 94 . . Volleys Fired 221 | 5 42 . 61 4 . 9 19 78 3 Largest 3 | 2 2 . 2 2 . 2 2 3 3 Hottest 225 | 70 120 . 150 150 . 150 150 225 195 Shots Fired 511 | 10 84 . 124 8 . 15 37 224 9 Gun 62 | 10 52 . . . . . . . . Cannon 441 | . 32 . 124 8 . 12 37 219 9 Launcher 8 | . . . . . . 3 . 5 . Special . | . . . . . . . . . . Kinetic 5 | 5 . . . . . . . . . Thermal 498 | 5 84 . 124 8 . 12 37 219 9 Explosive 5 | . . . . . . . . 5 . Electromagnetic 3 | . . . . . . 3 . . . Robot Hit Streak 32 | 4 7 . 32 5 . 10 7 30 4 Robot Miss Streak 6 | 2 3 . 4 3 . 2 3 6 3 Penetration Max . | . . . . . . . . . . Secondary Targets 1 | . 1 . . . . . . . . Max Gunslinging Chain 1 | . 1 . . . . . . . . Shots Hit Robots 332 | 5 45 . 82 4 . 12 23 156 5 Core Hits 214 | 5 20 . 38 1 . 10 8 130 2 Critical Kills 2 | . 1 . . . . 1 . . . Critical Parts Destroyed . | . . . . . . . . . . Critical Strikes 4 | . 3 . . . . 1 . . . Burn 2 | . 2 . . . . . . . . Meltdown 2 | . 1 . . . . 1 . . . Melee Attacks 4 | . . . . . . . . 4 . Impact 4 | . . . . . . . . 4 . Slashing . | . . . . . . . . . . Piercing . | . . . . . . . . . . Sneak Attacks . | . . . . . . . . . . Combat Hostiles . | . . . . . . . . . . Follow-up Attacks . | . . . . . . . . . . Damage Inflicted 10261 | 61 675 33 2017 108 . 346 629 6275 117 Guns 440 | 61 379 . . . . . . . . Cannons 7581 | . 282 . 2002 108 . 225 606 4241 117 Explosions 2103 | . . . . . . 111 . 1992 . Melee . | . . . . . . . . . . Ramming 137 | . 14 33 15 . . 10 23 42 . Kinetic 49 | 49 . . . . . . . . . Thermal 8241 | 12 661 . 2002 108 . 225 606 4510 117 Explosive 1723 | . . . . . . . . 1723 . Electromagnetic 111 | . . . . . . 111 . . . Impact . | . . . . . . . . . . Slashing . | . . . . . . . . . . Piercing . | . . . . . . . . . . Highest Corruption 6 | . . . 1 1 1 1 . 6 6 Average Corruption 1 | . . . 1 1 1 1 . 1 6 Corruption Purged . | . . . . . . . . . . Corruption Blocked . | . . . . . . . . . . Effects 33 | . . . 13 2 1 2 . 11 4 Message Errors 11 | . . . 4 . . 2 . 4 1 Matter Fused 5 | . . . 2 . . . . 1 2 Heat Flow Errors 3 | . . . 1 . . . . 2 . Energy Discharges 3 | . . . 1 1 . . . . 1 Parts Fused 1 | . . . . . 1 . . . . Data Loss (minor) 5 | . . . 2 . . . . 3 . Data Loss (major) 3 | . . . 1 1 . . . 1 . Misfires 2 | . . . 2 . . . . . . Overload Shots . | . . . . . . . . . . Overflow Damage 212 | . . . 95 35 . . 28 54 . Projectiles 186 | . . . 95 35 . . 28 28 . Explosions 25 | . . . . . . . . 25 . Melee 1 | . . . . . . . . 1 . Knockbacks 2 | . . 2 . . . . . . . Impact 2 | . . 2 . . . . . . . Kinetic . | . . . . . . . . . . Secondary . | . . . . . . . . . . Self-Inflicted Damage 374 | . . . . . . . . 374 . Shots 13 | . . . . . . . . 13 . Rammed 17 | . 4 3 1 . . 2 3 4 . Targets Rammed 21 | . 5 3 3 . . 2 3 5 . Kicked . | . . . . . . . . . . Crushed 4 | . 1 . 2 . . . . 1 . Highest Temperature 331 | 38 299 . 256 168 . 315 . 331 137 Average Temperature 99 | 12 99 . 88 88 . 159 . 121 67 Received Heat Transfer 1314 | . 204 . 282 . . 81 18 687 42 Effects 4 | . 3 . 1 . . . . . . Interference 4 | . 3 . 1 . . . . . . Siege Activations . | . . . . . . . . . . Martial Activations . | . . . . . . . . . . Shielding Activations . | . . . . . . . . . . Robots Disrupted . | . . . . . . . . . . Combat Hostiles . | . . . . . . . . . . Robots Corrupted . | . . . . . . . . . . Combat Hostiles . | . . . . . . . . . . Parts Fried 2 | . . . . . . 2 . . . Impact Corruptions 1 | . . . . . . . . 1 . Robots Melted 3 | . 2 . . . . 1 . . . Combat Hostiles 2 | . 1 . . . . 1 . . . Parts Melted 29 | . 5 . 4 . . 2 . 17 1 Heat Transferred 12633 | 37 1813 . 3219 148 . 333 888 6010 185 Parts Sabotaged . | . . . . . . . . . . Parts Stolen . | . . . . . . . . . . Parts Stripped . | . . . . . . . . . . Power Chain Reactions 2 | . . . . . . 2 . . . Alert | -11 -10 -10 -9 -9 -9 -8 -8 -7 -7 ------- Run | Yrd Mat Min Mat Min Exi Min Mat Fac Low Maximum Alert Level 4 | . . . 1 . . . . 4 . Low Security (%) 80 | 100 100 100 93 100 . 100 100 56 . Level 1 6 | . . . 6 . . . . 12 . Level 2 10 | . . . . . . . . 26 . Level 3 1 | . . . . . . . . 4 . Level 4 . | . . . . . . . . . . Level 5 . | . . . . . . . . . . High Security . | . . . . . . . . . . Max Security . | . . . . . . . . . . Peak Influence 1136 | 10 71 . 353 59 . 92 31 1136 . Initial 52 | . . . . 52 . . . 2 . Average 130 | . 24 . 104 15 . 26 6 241 . Influence Increases 3375 | 20 368 . 871 79 . 182 136 1699 20 Destroy 0b10 Robot/C 1800 | . 220 . 440 60 . 140 60 860 20 Destroy 0b10 Robot/NC 200 | 20 30 . 60 . . . 20 70 . Destroy Leader 474 | . 60 . 132 10 . 20 24 228 . Allied During Kill 6 | . . . . 6 . . . . . Successful Hack 134 | . 40 . 20 . . . 19 55 . Select Force Hacks 30 | . . . 30 . . . . . . Disable Machine 330 | . . . . . . 15 . 315 . Destroy Structure 206 | . 3 . 24 3 . 7 13 156 . Lose Combat Pursuer 195 | . 15 . 165 . . . . 15 . Influence Decreases 2700 | 20 368 . 737 213 . 182 130 569 481 Entered New Map 507 | . . . . 82 . . . 4 421 Time Decay 1827 | 20 358 . 568 111 . 182 130 398 60 Lost Part 119 | . 10 . 19 . . . . 90 . Lost Ally 20 | . . . . 20 . . . . . Purge Threat 227 | . . . 150 . . . . 77 . Squads Dispatched 24 | . 1 . 2 . . . 5 16 . Investigation 8 | . 1 . 1 . . . 2 4 . Extermination 7 | . . . . . . . . 7 . Reinforcement 3 | . . . 1 . . . . 2 . Assault 5 | . . . . . . . 2 3 . Garrison 1 | . . . . . . . 1 . . Intercept . | . . . . . . . . . . Searches Triggered . | . . . . . . . . . . Construction Impeded 1 | . . . 1 . . . . . . Haulers Reinforced . | . . . . . . . . . . Active Scanning Responses . | . . . . . . . . . . Cargo Convoy Interrupts . | . . . . . . . . . . Stealth | -11 -10 -10 -9 -9 -9 -8 -8 -7 -7 --------- Run | Yrd Mat Min Mat Min Exi Min Mat Fac Low Distress Signals 10 | . 1 . 6 . . . 1 2 . Communications Jammed . | . . . . . . . . . . Distress Signals . | . . . . . . . . . . Times Spotted 148 | . 20 . 48 2 . 7 5 65 1 Peak Tracking Total 10 | . 3 . 7 3 . 4 1 10 1 Tactical Retreats 8 | . 1 . 6 . . . . 1 . Traps | -11 -10 -10 -9 -9 -9 -8 -8 -7 -7 ------- Run | Yrd Mat Min Mat Min Exi Min Mat Fac Low Traps Triggered 4 | . 3 . 1 . . . . . . Indirectly . | . . . . . . . . . . Trap Hack Attempts . | . . . . . . . . . . Triggered . | . . . . . . . . . . Disarmed . | . . . . . . . . . . Reprogrammed . | . . . . . . . . . . Reused . | . . . . . . . . . . Traps Extracted . | . . . . . . . . . . Installed . | . . . . . . . . . . Triggered . | . . . . . . . . . . Machines | -11 -10 -10 -9 -9 -9 -8 -8 -7 -7 ---------- Run | Yrd Mat Min Mat Min Exi Min Mat Fac Low Machines Disabled 23 | . . . 1 . . 1 . 21 . Max in Single Turn 11 | . . . 1 . . 1 . 11 . Garrison Access 1 | . . . . . . . 1 . . Machines Repaired . | . . . . . . . . . . Machines Dismantled . | . . . . . . . . . . Machines Sabotaged . | . . . . . . . . . . Overloaded Fab Kills . | . . . . . . . . . . Hacking | -11 -10 -10 -9 -9 -9 -8 -8 -7 -7 --------- Run | Yrd Mat Min Mat Min Exi Min Mat Fac Low Machines Accessed 33 | . 9 . 9 1 . . 3 11 . Terminals 22 | . 8 . 6 . . . 2 6 . Fabricators 2 | . . . . . . . . 2 . Repair Stations 6 | . 1 . 2 . . . 1 2 . Recycling Units 1 | . . . 1 . . . . . . Scanalyzers 1 | . . . . . . . . 1 . Garrison Access . | . . . . . . . . . . Total Hacks 96 | . 26 . 32 1 . . 11 26 . Successful 51 | . 10 . 18 1 . . 7 15 . Failed 44 | . 16 . 13 . . . 4 11 . Catastrophic 10 | . 4 . 4 . . . . 2 . Database Lockouts 1 | . . . 1 . . . . . . Manual 54 | . 18 . 21 . . . 5 10 . Terminals 67 | . 24 . 22 . . . 8 13 . Fabricators 5 | . . . . . . . . 5 . Repair Stations 20 | . 2 . 9 . . . 3 6 . Recycling Units 1 | . . . 1 . . . . . . Scanalyzers 2 | . . . . . . . . 2 . Garrison Access . | . . . . . . . . . . Terminal Hacks 26 | . 10 . 7 1 . . 4 4 . Record 1 | . 1 . . . . . . . . Part Schematic 1 | . . . 1 . . . . . . Robot Analysis 7 | . 4 . 1 . . . 1 1 . Prototype ID Bank 6 | . 4 . 1 . . . 1 . . Open Door 1 | . . . . 1 . . . . . Branch Access Points 3 | . . . 1 . . . 1 1 . Scanalyzer Index 1 | . . . . . . . . 1 . Alert Level 2 | . . . 1 . . . 1 . . Unreport Threat 2 | . . . 1 . . . . 1 . Hauler Manifests 1 | . 1 . . . . . . . . Zone Layout 1 | . . . 1 . . . . . . Fabricator Hacks 4 | . . . . . . . . 4 . Load Schematic 2 | . . . . . . . . 2 . Build 2 | . . . . . . . . 2 . Repair Station Hacks 13 | . . . 7 . . . 2 4 . Scan Component 7 | . . . 4 . . . 1 2 . Repair 6 | . . . 3 . . . 1 2 . Recycling Unit Hacks . | . . . . . . . . . . Scanalyzer 2 | . . . . . . . . 2 . Insert Component 1 | . . . . . . . . 1 . Analyze 1 | . . . . . . . . 1 . Garrison Access Hacks . | . . . . . . . . . . Unauthorized Hacks 6 | . . . 4 . . . 1 1 . Terminals 5 | . . . 3 . . . 1 1 . Botnet 4 | . . . 2 . . . 1 1 . Operators 1 | . . . 1 . . . . . . Fabricators . | . . . . . . . . . . Repair Stations . | . . . . . . . . . . Recycling Units 1 | . . . 1 . . . . . . Tunnel 1 | . . . 1 . . . . . . Scanalyzers . | . . . . . . . . . . Garrison Access . | . . . . . . . . . . Data Cores Recovered 2 | . . . 1 . . . . 1 . Used . | . . . . . . . . . . Hacking Detections 30 | . 9 . 7 . . . 3 11 . Full Trace Events 6 | . 1 . 1 . . . . 4 . Feedback Events . | . . . . . . . . . . Feedback Blocked . | . . . . . . . . . . Robot Schematics Acquired . | . . . . . . . . . . Robots Built . | . . . . . . . . . . Authchips . | . . . . . . . . . . Time . | . . . . . . . . . . Total Robot Build Rating . | . . . . . . . . . . Part Schematics Acquired 2 | . . . 1 . . . . 1 . Parts Built 2 | . . . . . . . . 2 . Authchips . | . . . . . . . . . . Time 146 | . . . . . . . . 146 . Total Part Build Rating 6 | . . . . . . . . 6 . Parts Repaired 6 | . . . 3 . . . 1 2 . Time 226 | . . . 112 . . . 38 76 . Parts Recycled . | . . . . . . . . . . Recycled Matter . | . . . . . . . . . . Retrieved Matter . | . . . . . . . . . . Retrieved Components . | . . . . . . . . . . Parts Scanalyzed 1 | . . . . . . . . 1 . Part Schematics Acquired 1 | . . . . . . . . 1 . Parts Damaged . | . . . . . . . . . . Bothacking | -11 -10 -10 -9 -9 -9 -8 -8 -7 -7 ------------ Run | Yrd Mat Min Mat Min Exi Min Mat Fac Low Used RIF Installer . | . . . . . . . . . . Robots Hacked . | . . . . . . . . . . Non-combat . | . . . . . . . . . . Combat . | . . . . . . . . . . Robot Hacks Applied . | . . . . . . . . . . Relay Couplers Released 3 | . . . . . . . 3 . . Machine Destruction 3 | . . . . . . . 3 . . Fabnet Peak Effective % . | . . . . . . . . . . Robots Rewired . | . . . . . . . . . . Allies Hacked . | . . . . . . . . . . Hacks Repelled . | . . . . . . . . . . Allies | -11 -10 -10 -9 -9 -9 -8 -8 -7 -7 -------- Run | Yrd Mat Min Mat Min Exi Min Mat Fac Low Total Allies 2 | . . . . 2 . . . . . Largest Group 2 | . . . . 2 1 . . . . Highest-Rated Group 48 | . . . . 48 17 . . . . Highest-Rated Ally 31 | . . . . 31 17 . . . . Total Orders 1 | . . . . 1 . . . . . RETURN 1 | . . . . 1 . . . . . Ally Attacks 5 | . . . . 5 . . . . . Total Damage 82 | . . . . 82 . . . . . Kills 1 | . . . . 1 . . . . . Allies Corrupted . | . . . . . . . . . . Allies Melted . | . . . . . . . . . . Intel | -11 -10 -10 -9 -9 -9 -8 -8 -7 -7 ------- Run | Yrd Mat Min Mat Min Exi Min Mat Fac Low Active Infowar (turns) 709 | . 709 . . . . . . . . Seismic 709 | . 709 . . . . . . . . Robot Analysis Total 7 | . 4 . 1 . . . 1 1 . Derelict Logs Recovered 2 | . . . . 2 . . . . . Drone Launches 3 | . . . . 3 . . . . . Drone Recoveries 3 | . . . . 3 . . . . . Exploration | -11 -10 -10 -9 -9 -9 -8 -8 -7 -7 ------------- Run | Yrd Mat Min Mat Min Exi Min Mat Fac Low Turns Passed 9566 | 135 1212 178 2168 434 166 705 614 3819 135 Spaces Moved 3768 | 68 619 107 870 168 70 280 217 1317 52 Core 23 | 23 . . . . . . . . . Treads 3450 | 45 619 107 575 168 70 280 217 1317 52 Legs . | . . . . . . . . . . Wheels 295 | . . . 295 . . . . . . Hover . | . . . . . . . . . . Flight . | . . . . . . . . . . Fastest Speed 50 | 50 160 160 105 240 240 240 156 236 240 Average Speed 208 | 150 160 160 191 240 240 240 200 236 240 Slowest Speed 240 | 160 160 160 240 240 240 240 240 240 240 Overloaded Moves . | . . . . . . . . . . Propulsion Burnouts . | . . . . . . . . . . Robots Hopped . | . . . . . . . . . . Potential Cave-ins 1 | . . . . . . . . 1 . Cave-ins Triggered . | . . . . . . . . . . Exploration Rate (%) 41 | 5 98 27 77 53 13 69 23 40 11 Regions Visited 9 Branch Regions 5 Pre-discovered Areas 2 | . . 1 1 . . . . . . Known Exits Taken 2 | . . . 1 . . . . 1 . Unknown Exits Taken 7 | 1 1 1 . 1 1 1 1 . . Scrap Searched 1 | . . . . 1 . . . . . Spaces Dug 53 | . . . 2 . . . . 51 . Terrain Destroyed 264 | . . . 16 4 . 7 13 224 . Melee 3 | . . . . . . . . 3 . Projectile 34 | . . . 16 4 . . 13 1 . AOE 227 | . . . . . . 7 . 220 . Terrain Rammed . | . . . . . . . . . . Walls Destroyed . | . . . . . . . . . . Machines Disabled . | . . . . . . . . . . Actions | -11 -10 -10 -9 -9 -9 -8 -8 -7 -7 --------- Run | Yrd Mat Min Mat Min Exi Min Mat Fac Low Total 5027 | 89 756 113 1261 193 69 295 356 1840 55 Wait 743 | 3 55 2 233 10 . 3 89 348 . Move 3759 | 67 618 106 869 167 69 279 216 1316 52 Hop . | . . . . . . . . . . Pick Up 87 | 7 14 . 36 2 . . 10 18 . Fast Attach 32 | 5 3 . 8 3 . . 5 8 . Attach 21 | 2 1 . 5 . . . 3 10 . Detach 7 | . 1 . 2 . . . 2 2 . Swap 53 | . 6 1 12 1 . 2 2 29 . Drop 79 | . 11 1 32 6 . . 7 22 . Fire 221 | 5 42 . 61 4 . 9 19 78 3 Melee 4 | . . . . . . . . 4 . Ram . | . . . . . . . . . . Kick . | . . . . . . . . . . Crush 21 | . 5 3 3 . . 2 3 5 . Escape Stasis . | . . . . . . . . . . Rewire . | . . . . . . . . . . Trap . | . . . . . . . . . . Miscellaneous . | . . . . . . . . . . Route ------- -11/Scrapyard -10/Materials (discovered 5 exits: *Mat x3 / [*Min x2]) -10/Mines -9/Materials (discovered 4 exits: *Mat x2 / *Min x2) -9/Mines -9/Exiles -8/Mines -8/Materials (discovered 3 exits: *Fac / Sto x2) -7/Factory (discovered 4 exits: [*Fac x2] / *Low x2) -7/Lower Caves History --------- Turn | Location | Event 21 | -11/Scrapyard | Discovered new exit (range 16) 136 | -11/Scrapyard | Entered Materials 300 | -10/Materials | Build established: Mutant 446 | -10/Materials | Discovered new exit (range 7) 446 | -10/Materials | Discovered new exit (range 10) 607 | -10/Materials | Discovered new exit (range 16) 878 | -10/Materials | Discovered new exit (range 5) 1111 | -10/Materials | Discovered new exit (range 10) 1348 | -10/Materials | Entered Mines 1349 | -10/Mines | Assembled infested the area 1349 | -10/Mines | Learned location of Storage (-8) 1354 | -10/Mines | Assisted by a Guerilla fighting off Assembled 1515 | -10/Mines | Discovered new exit (range 5) 1526 | -10/Mines | Entered Materials 1526 | -9/Materials | Evolved 2 slots: Propulsion x1, Utility x1 1570 | -9/Materials | Discovered new exit (range 15) 1933 | -9/Materials | Identified exit to Mines 2143 | -9/Materials | Repaired Broken Beam Cannon 2815 | -9/Materials | Destroyed 8 combat bots 2863 | -9/Materials | Discovered new exit (range 16) 3096 | -9/Materials | Build established: Scavenger-Mutant 3138 | -9/Materials | Repaired Hvy. Particle Cannon 3177 | -9/Materials | Repaired Reflective Plating 3341 | -9/Materials | Discovered new exit (range 5) 3508 | -9/Materials | Central database locked down 3694 | -9/Materials | Entered Mines 3700 | -9/Mines | Found the Drone Emporium 3712 | -9/Mines | Found Prototype Device 3712 | -9/Mines | Identified Thief Drone Bay 3832 | -9/Mines | Learned Materials security intel 4116 | -9/Mines | Deemed a non-threat by the Exiles lab entrance 4118 | -9/Mines | Discovered new exit (range 5) 4128 | -9/Mines | Entered Exiles 4128 | -9/Exiles | Accompanied by 1 ally 4160 | -9/Exiles | Discovered new exit (range 15) 4193 | -9/Exiles | Met 8R-AWN 4294 | -9/Exiles | Entered Mines 4987 | -8/Mines | Discovered new exit (range 6) 4999 | -8/Mines | Entered Materials 4999 | -8/Materials | Evolved 2 slots: Propulsion x1, Utility x1 5111 | -8/Materials | Garrison activated, responded to threat 5118 | -8/Materials | Repaired Reflective Plating 5131 | -8/Materials | Identified exit to Storage 5608 | -8/Materials | Discovered new exit (range 3) 5613 | -8/Materials | Entered Factory 5613 | -7/Factory | Evolved 2 slots: Power x1, Weapon x1 5923 | -7/Factory | Build established: Tank 6167 | -7/Factory | Found Prototype Launcher 6167 | -7/Factory | Identified Rocket Array 7545 | -7/Factory | Discovered new exit (range 11) 8184 | -7/Factory | Discovered new exit (range 15) 8392 | -7/Factory | Fabricated Hvy. Particle Cannon (x2) 8722 | -7/Factory | Repaired Hvy. Particle Cannon 8761 | -7/Factory | Repaired Adv. Treads 8969 | -7/Factory | Lost 3 parts (1p2u) 9018 | -7/Factory | Identified exit to Lower Caves 9213 | -7/Factory | First assault squad dispatched 9432 | -7/Factory | Entered Lower Caves 9434 | -7/Lower Caves | Attracted the attention of an 0b10 checkpoint 9434 | -7/Lower Caves | Destroyed 10 combat bots 9443 | -7/Lower Caves | Lost 4 parts (1n2u1w) 9567 | -7/Lower Caves | Self-destructed Last Messages --------------- 09413_ B-48 Gladiator destroyed. 09413_ Destroyed Carbon-fiber Leg. 09413_ L-41 Fighter destroyed. 09414_ The unstable cave ceiling collapses. 09418_ Fusion Modulator explodes. 09418_ Fabricator disabled. 09418_ Fusion Modulator explodes. 09418_ K-01 Serf destroyed. 09418_ Fusion Modulator explodes. LOCATION=LOWER CAVES GOAL=ESCAPE 09434_ Y-54 Guardian: "INTERCEPTING UNREGISTERED DERELICT." 09435_ System corrupted: Energy discharge (-172). 09439_ Imp. Deuterium Engine melted. 09439_ Y-54 Guardian destroyed. 09449_ Acquired 70 matter. 09451_ Lgt. Treads fries itself beyond repair. 09454_